[Event "FIDE World Cup O12-TB 2024"]
[Site "Batumi"]
[Date "2024.07.01"]
[Round "1.7"]
[White "Siddhanth Poonja"]
[Black "Zhang, Haoxuan(Zj)"]
[Result "1/2-1/2"]
[ECO "A37"]
[WhiteElo "1958"]
[BlackElo "1907"]
[Annotator "TA"]
[PlyCount "162"]
[EventDate "2024.06.23"]
[EventType "swiss"]
[EventCountry "GEO"]
[SourceTitle "playchess.com"]
[Source "ChessBase"]
[SourceQuality "1"]
[TimeControl "5400+30"]

{[%evp 21,162,8,21,18,29,34,46,34,35,0,37,37,55,54,51,53,102,120,133,102,95,42,43,50,47,31,34,30,87,44,88,40,56,29,36,28,50,32,80,76,79,88,157,146,146,137,144,89,97,96,162,157,167,108,107,99,135,135,158,151,150,129,179,179,221,182,216,191,191,154,157,152,162,168,164,161,191,102,189,174,184,88,89,33,33,10,10,10,10,0,0,0,0,0,0,0,0,0,0,0,8,8,38,38,38,38,38,38,38,34,38,38,53,8,8,8,8,8,8,8,8,0,0,0,0,0,0,0,0,0,0,0,0,0,0,0,0,0,0,0,0,0,0]} 1. c4 {[%emt 0:00:01]} c5 {[%emt 0:00:04]} 2. g3 {[%emt 0:00:04]} Nc6 {[%emt 0:00:05]} 3. Bg2 {[%emt 0:00:04]} g6 {[%emt 0:00:06]} 4. Nc3 {[%emt 0:00:05]} Bg7 {[%emt 0:00:05]} 5. Nf3 {[%emt 0:00:03]} e6 {[%emt 0:00:06]} 6. d3 {[%emt 0:00:04]} Nge7 {[%emt 0:00:20]} 7. Bg5 {[%emt 0:00:07] A37: Symmetrical English vs ...g6: 4 Bg2 Bg7 5 Nf3.} O-O {[%emt 0:02:23]} 8. Qd2 {[%emt 0:00:06]} d5 {[%emt 0:04:20]} 9. cxd5 {[%emt 0:10:24]} exd5 {[%emt 0:00:09]} 10. Bh6 {[%emt 0:03:06]} Be6 {[%emt 0:10:12]} 11. Bxg7 $146 {[%emt 0:00:57]} ({Predecessor:} 11. h4 Bxh6 12. Qxh6 Nf5 13. Qd2 h5 14. Ng5 Qd7 15. O-O-O Rad8 16. g4 Ng7 17. gxh5 gxh5 {1-0 Beck,G (1948)-Noehbauer,A (1946) Mittelfranken Landesliga Sued 2122 2021 (4.7)}) 11... Kxg7 {[%emt 0:00:46]} 12. d4 {[%emt 0:12:51]} b6 {[%emt 0:08:18]} 13. O-O {[%emt 0:04:44]} Rc8 {[%emt 0:02:10]} 14. Rfd1 {[%emt 0:04:36]} c4 {[%emt 0:15:29]} 15. h4 {[%emt 0:07:38]} h6 {[%emt 0:01:29]} 16. Ne5 {[%emt 0:12:26]} f5 {[%emt 0:04:44]} 17. Nxc4 {[%emt 0:10:06]} dxc4 {[%emt 0:00:19]} 18. d5 {[%emt 0:00:07]} Bf7 {[%emt 0:10:31]} (18... Bxd5 $14 {is superior.} 19. Nxd5 Nxd5 20. Bxd5 Qf6) 19. dxc6 $16 {[%emt 0:00:14]} Nxc6 {[%emt 0:01:31]} 20. Qd7 {[%emt 0:06:09]} Qf6 {[%emt 0:08:56]} 21. Rd6 {[%emt 0:05:38]} ({White should play} 21. Qb7 $16) 21... Ne5 $14 {[%emt 0:01:38]} 22. Rxf6 {[%emt 0:00:02]} (22. Qxa7 $2 {loses.} Qxd6 23. Qa4 Rcd8 $19) 22... Nxd7 {[%emt 0:00:10]} 23. Rd6 {[%emt 0:00:02]} Nc5 {[%emt 0:01:43]} 24. Rad1 {[%emt 0:00:05]} Rc7 {[%emt 0:00:57]} (24... Be8 $11) 25. Bf1 {[%emt 0:05:32]} Rb8 {[%emt 0:01:13]} 26. Nb5 {[%emt 0:10:41]} ({White should try} 26. h5 $1 $16) 26... Re7 $14 {[%emt 0:00:13]} 27. Nd4 {[%emt 0:00:16]} Rc8 {[%emt 0:06:25]} 28. Bg2 {[%emt 0:01:09]} Na4 {[%emt 0:02:50]} 29. Rd2 {[%emt 0:01:10]} c3 {[%emt 0:00:23]} (29... h5 $1 $14) 30. bxc3 $16 {[%emt 0:00:05]} Nxc3 {[%emt 0:00:25]} 31. h5 $1 {[%emt 0:00:07]} Rce8 {[%emt 0:04:09]} (31... Rc5 $142) 32. hxg6 {[%emt 0:00:25]} Bxg6 {[%emt 0:00:09]} 33. Bc6 {[%emt 0:00:28]} Ne4 {[%emt 0:01:47]} 34. Bxe4 {[%emt 0:01:51]} (34. Bxe8 $142 Nxd6 35. Bxg6 Kxg6 36. Nc6) 34... fxe4 $16 {[%emt 0:00:30]} 35. e3 {[%emt 0:01:44]} Rf7 {[%emt 0:01:32]} (35... Rc8 $16 36. g4 Kh7) 36. Rc2 $1 $18 {[%emt 0:00:39]} Bf5 {[%emt 0:03:10]} 37. Rcc6 {[%emt 0:02:10]} (37. Nxf5+ $18 Rxf5 38. Rc7+ Rf7 39. Rxf7+ Kxf7 40. Rxh6) 37... h5 $16 {[%emt 0:00:43]} 38. Rh6 {[%emt 0:00:37]} Rh8 {[%emt 0:02:42]} 39. Rxh8 {[%emt 0:00:09]} Kxh8 {[%emt 0:00:01]} 40. Rh6+ {[%emt 0:00:01]} Kg7 {[%emt 0:00:34]} 41. Rxh5 {[%emt 0:00:03]} Bg6 {[%emt 0:00:16]} (41... Kg6 $16 42. Rh4 Rc7) 42. Rd5 $18 {[%emt 0:00:09]} Re7 {[%emt 0:00:52]} 43. Rd6 {[%emt 0:00:05]} Rb7 {[%emt 0:00:57]} 44. Ne6+ {[%emt 0:00:04]} Kg8 {[%emt 0:01:11]} 45. Nd8 {[%emt 0:00:25]} Rg7 {[%emt 0:00:12]} 46. Nc6 {[%emt 0:00:08]} Bf5 {[%emt 0:01:09]} 47. Rd8+ {[%emt 0:00:23]} Kh7 {[%emt 0:00:06]} 48. Ra8 {[%emt 0:00:04]} Rc7 {[%emt 0:01:18]} 49. Nd4 {[%emt 0:00:35]} ({Don't play} 49. Nxa7 $6 Bg4 $14) (49. Rxa7 $18 Rxa7 50. Nxa7) 49... Bg4 {[%emt 0:00:11] [#]} (49... Kg6 $16 {was necessary.} 50. Nxf5 Kxf5) 50. Re8 $1 $18 {[%emt 0:00:14]} Bf3 {[%emt 0:01:03]} 51. Nxf3 {[%emt 0:07:07]} (51. Kh2 $18) 51... exf3 $16 {[#]} 52. g4 {[%emt 0:00:00]} (52. Rf8 $1 $16 {[%cal Rf8f3]} Rc1+ 53. Kh2) 52... Rc4 {[%emt 0:01:11]} 53. Re7+ {[%emt 0:00:00]} Kg6 {[%emt 0:00:05]} 54. Rxa7 {[%emt 0:00:00]} Rxg4+ {[%emt 0:00:05]} 55. Kf1 {[%emt 0:00:00]} Rb4 {[%emt 0:00:16]} 56. Ke1 {[%emt 0:00:00]} Rb2 {[%emt 0:00:25]} 57. e4 {[%emt 0:00:32]} Re2+ {[%emt 0:00:40]} 58. Kf1 {[%emt 0:00:05]} Rxe4 {[%emt 0:00:21]} 59. Ra3 {[%emt 0:00:08]} Rf4 {[%emt 0:00:06]} 60. Rb3 {[%emt 0:00:04]} Rf6 {[%emt 0:00:06]} 61. Kg1 {[%emt 0:00:03]} Kg5 {[%emt 0:01:28]} 62. Kh2 {[%emt 0:00:06]} Kf4 {[%emt 0:02:00]} 63. Rb4+ {[%emt 0:00:04]} Ke5 {[%emt 0:00:23]} 64. Kg3 {[%emt 0:00:05]} Kd5 {[%emt 0:00:42]} 65. Rf4 {[%emt 0:00:08]} Rh6 {[%emt 0:00:38]} 66. a4 {[%emt 0:00:11]} Ke5 {[%emt 0:00:45]} 67. Rxf3 {[%emt 0:02:48]} Rg6+ {[%emt 0:00:04]} 68. Kh4 {[%emt 0:00:04]} Ke4 {[%emt 0:00:17]} 69. Rg3 {[%emt 0:00:31]} Rf6 {[%emt 0:00:24]} 70. Re3+ {[%emt 0:00:23]} Kf4 {[%emt 0:00:15]} 71. Kh5 {[%emt 0:00:05]} Rf5+ {[%emt 0:00:08]} 72. Kg6 {[%emt 0:00:06]} Ra5 {[%emt 0:00:04]} 73. Rh3 {[%emt 0:00:30]} Kg4 {[%emt 0:00:04]} 74. Rg3+ {[%emt 0:00:07]} Kf4 {[%emt 0:00:04]} 75. Rb3 {[%emt 0:00:27]} Rxa4 {[%emt 0:00:12]} 76. Rxb6 {[%emt 0:00:06]} Kf3 {[%emt 0:00:04]} 77. Rb2 {[%emt 0:00:30]} Rg4+ {[%emt 0:00:10]} 78. Kf5 {[%emt 0:00:06]} Rg2 {[%emt 0:00:05]} 79. Rb3+ {[%emt 0:00:10]} Kxf2 {[%emt 0:00:05]} 80. Kf4 {[%emt 0:00:03]} Rg8 {[%emt 0:00:07]} 81. Rb2+ {[%emt 0:00:05]} Ke1 {[%emt 0:00:05]} 1/2-1/2

[Event "FIDE World Cup O12-TB 2024"]
[Site "Batumi"]
[Date "2024.07.01"]
[Round "1.8"]
[White "Minkhajdarov, Ruslan"]
[Black "Yerzhanuly Yernur"]
[Result "1-0"]
[ECO "C18"]
[WhiteElo "1921"]
[BlackElo "1810"]
[Annotator "RC"]
[PlyCount "55"]
[EventDate "2024.06.23"]
[EventType "swiss"]
[EventCountry "GEO"]
[SourceTitle "playchess.com"]
[Source "ChessBase"]
[SourceQuality "1"]
[TimeControl "5400+30"]

1. e4 {[%emt 0:00:14]} e6 {[%emt 0:00:02]} 2. d4 {[%emt 0:00:05]} d5 {[%emt 0:00:05]} 3. Nc3 {[%emt 0:00:05]} Bb4 {[%emt 0:00:06]} 4. e5 {[%emt 0:00:05]} c5 {[%emt 0:00:05]} 5. a3 {[%emt 0:00:04]} Bxc3+ {[%emt 0:00:04]} 6. bxc3 {[%emt 0:00:05]} Ne7 {[%emt 0:00:04]} 7. Qg4 {[%emt 0:00:09]} O-O {[%emt 0:00:09]} 8. Bd3 {[%emt 0:00:04]} Nbc6 {[%emt 0:00:17]} 9. Bg5 {[%emt 0:00:14]} Qa5 {[%emt 0:06:43]} 10. Ne2 {[%emt 0:00:19]} c4 {[%emt 0:08:31]} 11. Bxh7+ {[%emt 0:00:40]} Kxh7 {[%emt 0:01:22]} 12. Bxe7 {[%emt 0:00:01]} Nxe7 {[%emt 0:10:50]} 13. Qh4+ {[%emt 0:00:10]} Kg8 {[%emt 0:00:15]} 14. Qxe7 {[%emt 0:00:10]} f6 {[%emt 0:06:08]} 15. exf6 {[%emt 0:19:55]} Rxf6 {[%emt 0:01:38]} 16. Kd2 {[%emt 0:02:48]} Rf7 {[%emt 0:02:11]} 17. Qd6 {[%emt 0:00:19]} Bd7 {[%emt 1:00:30]} 18. f4 {[%emt 0:00:17]} Bc6 {[%emt 0:00:00]} 19. Qe5 {[%emt 1:14:16]} Rf5 {[%emt 0:00:00]} 20. Qe3 {[%emt 0:00:00]} Raf8 {[%emt 0:00:00]} 21. g4 {[%emt 0:00:00]} R5f7 {[%emt 0:00:00]} 22. Qe5 {[%emt 0:00:00]} Qd8 {[%emt 0:00:00]} 23. h4 {[%emt 0:00:00]} Qf6 {[%emt 0:00:00]} 24. Qxf6 {[%emt 0:00:00]} gxf6 {[%emt 0:00:00]} 25. Rae1 {[%emt 0:00:00]} e5 {[%emt 0:00:00]} 26. f5 {[%emt 0:00:00]} Re7 {[%emt 0:00:00]} 27. Nf4 {[%emt 0:00:00]} Rfe8 {[%emt 0:00:00]} 28. Ng6 {[%emt 0:00:00]} 1-0

[Event "FIDE World Cup O12-TB 2024"]
[Site "Batumi"]
[Date "2024.07.01"]
[Round "1.9"]
[White "Haresh, Venkata Narayanaswam"]
[Black "Tatvidze, Davit"]
[Result "0-1"]
[ECO "B39"]
[WhiteElo "1728"]
[BlackElo "2000"]
[Annotator "TA"]
[PlyCount "82"]
[EventDate "2024.06.23"]
[EventType "swiss"]
[EventCountry "GEO"]
[SourceTitle "playchess.com"]
[Source "ChessBase"]
[SourceQuality "1"]
[TimeControl "5400+30"]

{[%evp 24,81,49,68,66,64,60,29,49,21,43,73,64,52,111,102,129,64,54,0,0,0,103,0,0,-22,-14,-425,-425,-424,-403,-468,-497,-491,-469,-1130,-1126,-961,-565,-1085,-973,-971,-949,-941,-885,-1461,-1566,-1383,-750,-1233,-1218,-1176,-1103,-1449,-1444,-1404,-1282,-1247,-1207,-29999]} 1. e4 {[%emt 0:00:08]} c5 {[%emt 0:00:03]} 2. Nf3 {[%emt 0:00:08]} Nc6 {[%emt 0:00:02]} 3. d4 {[%emt 0:00:10]} cxd4 {[%emt 0:00:04]} 4. Nxd4 {[%emt 0:00:07]} g6 {[%emt 0:00:04]} 5. c4 {[%emt 0:00:09]} Bg7 {[%emt 0:00:12]} 6. Be3 {[%emt 0:00:06]} Nf6 {[%emt 0:00:03]} 7. Nc3 {[%emt 0:00:07]} Ng4 {[%emt 0:00:05]} 8. Qxg4 {[%emt 0:00:05]} Nxd4 {[%emt 0:00:03]} 9. Qd1 {[%emt 0:00:08]} Ne6 {[%emt 0:00:01]} 10. Rc1 {[%emt 0:00:11]} b6 {[%emt 0:00:57]} 11. Bd3 {[%emt 0:00:40]} Bb7 {[%emt 0:00:09]} 12. O-O {[%emt 0:00:44]} O-O {[%emt 0:00:04]} 13. Bb1 {[%emt 0:02:38]} Rc8 {[%emt 0:08:13]} 14. b3 {[%emt 0:06:30]} d6 {[%emt 0:12:10]} 15. Nd5 {[%emt 0:05:15]} Qd7 {[%emt 0:03:11] White has an edge.} 16. f4 {[%emt 0:14:30]} f5 {[%emt 0:12:18]} 17. exf5 {[%emt 0:07:44]} gxf5 {[%emt 0:00:09]} 18. Qh5 {[%emt 0:06:48]} Bxd5 {[%emt 0:16:26]} (18... Nd4 $1 $14) 19. cxd5 $16 {[%emt 0:04:48]} Nc5 {[%emt 0:02:13]} 20. Rf3 {[%emt 0:16:06]} (20. Qh3 $16) 20... Ne4 $14 {[%emt 0:09:01] [#] aiming for ...Rxc1+.} 21. Bxe4 {[%emt 0:07:43]} ({White should try} 21. Re1 $14 Qe8 22. Qxe8 Rfxe8 23. Rff1) 21... fxe4 $11 {[%emt 0:09:21]} 22. Rg3 {[%emt 0:09:08] Qh6 would now be deadly.} Rf7 {[%emt 0:11:43]} (22... Rxc1+ $11 23. Bxc1 Kh8) 23. Bd2 {[%emt 0:09:34]} (23. Rxc8+ $16 Qxc8 24. h3) 23... Kf8 {[%emt 0:02:22]} 24. Bc3 {[%emt 0:05:14] Threatens to win with Bxg7+.} (24. Qxh7 Bd4+ 25. Kh1 Rxc1+ (25... Rxh7 $2 26. Rg1 $19) 26. Bxc1 Rxh7 27. Be3 Bxe3 28. Rxe3 Qg4 29. h3 Qd1+ (29... Qxf4 30. Rc3 Rh5 31. Rc8+ Kf7 32. Rc1 Qxc1+ 33. Kh2 Rxd5 34. Kg3 Qg5+ 35. Kf2 Qf4+ 36. Ke1 Qe3+ 37. Kf1 Rf5#) 30. Kh2 Qd2 (30... Qxd5 $2 31. Rc3 $19) 31. f5 Qxe3 32. f6 exf6 (32... Qf4+ 33. Kg1 exf6 34. b4 Rc7 35. g4 Rc2 36. h4 Qc1#) 33. b4 Qf4+ 34. Kh1 Rc7 (34... e3 35. b5 e2 36. g4 e1=Q+ 37. Kg2 Qfg3#) 35. g4 Qg3 36. b5 Rc1#) 24... Bd4+ {[%emt 0:08:57]} 25. Bxd4 $4 {[%emt 0:00:35][%mdl 8192] Loses the game.} (25. Kh1 $11 {and White has nothing to worry.} Qf5 26. Qh6+ Ke8 27. Rg8+ Rf8 28. Rxf8+ (28. g4 Rxc3 29. Rd1 Qf7 $15) 28... Qxf8 29. Qe6 Rxc3 30. Rxc3 Bxc3 31. Qc8+ Kf7 32. Qxc3) 25... Rxc1+ $19 {[%emt 0:00:05]} 26. Kf2 {[%emt 0:00:07] [#] Qh6+ would kill now.} Qf5 $1 {[%emt 0:00:10]} (26... Rxf4+ $2 {too greedy.} 27. Ke3 e5 (27... Qf5 28. Bg7+ Kg8 29. Qe8+) 28. dxe6 Qxe6 29. Kxf4 $18) 27. Qh6+ {[%emt 0:03:49]} Ke8 {[%emt 0:00:04]} 28. Rg8+ {[%emt 0:00:45]} Kd7 {[%emt 0:00:16]} 29. Ke2 {[%emt 0:00:23]} (29. Qg5 $142) 29... Qxd5 {[%emt 0:01:15]} 30. Qh3+ {[%emt 0:00:18]} Qf5 {[%emt 0:00:51]} 31. Qe3 {[%emt 0:00:40]} Qb5+ {[%emt 0:01:53]} 32. Kf2 {[%emt 0:00:37]} Rf1+ {[%emt 0:00:20]} 33. Kg3 {[%emt 0:00:08]} R1xf4 {[%emt 0:00:32] And now ...Qh5 would win.} 34. Qc1 {[%emt 0:00:40]} Rf8 {[%emt 0:01:24]} 35. Rg7 {[%emt 0:00:44]} Qh5 {[%emt 0:00:43]} 36. Qxf4 {[%emt 0:00:31]} Rxf4 {[%emt 0:00:10]} 37. Kxf4 {[%emt 0:00:08] KQ-KRB} Kc6 {[%emt 0:00:43] White must now prevent ...e5+.} 38. Kxe4 {[%emt 0:00:22]} Qe2+ {[%emt 0:00:23]} 39. Kf5 {[%emt 0:00:40]} Qd3+ {[%emt 0:00:21]} 40. Ke6 {[%emt 0:01:22]} Qxd4 {[%emt 0:00:16][%csl Ge7][%cal Rd4f6]} 41. Rg5 {[%emt 0:00:00]} Qf6# {[%emt 0:00:04] Weighted Error Value: White=1.30/Black=0.91.  Loses game:     	White=1     	---        Mistake:       	White=4     	Black=2      Inaccurate:     	White=2     	---        OK:         	White=5     	Black=5      Best:        	White=2     	Black=3      Strong:       	---       	Black=1} 0-1

[Event "FIDE World Cup O12-TB 2024"]
[Site "Batumi"]
[Date "2024.07.01"]
[Round "1.10"]
[White "Golikov, Ivan"]
[Black "Kleschevnikov, Arseny"]
[Result "0-1"]
[ECO "A17"]
[WhiteElo "1723"]
[BlackElo "1895"]
[Annotator "NA RC"]
[PlyCount "68"]
[EventDate "2024.06.23"]
[EventType "swiss"]
[EventCountry "GEO"]
[SourceTitle "playchess.com"]
[Source "ChessBase"]
[SourceQuality "1"]
[TimeControl "5400+30"]

1. c4 {[%emt 0:00:01]} e6 {[%emt 0:00:07]} 2. Nf3 {[%emt 0:00:28]} d5 {[%emt 0:00:05]} 3. e3 {[%emt 0:00:07]} Nf6 {[%emt 0:01:07]} 4. Nc3 {[%emt 0:00:07]} b6 {[%emt 0:06:23]} 5. b3 {[%emt 0:00:26]} Bb7 {[%emt 0:04:34]} 6. Bb2 {[%emt 0:00:19]} Nbd7 {[%emt 0:03:09]} 7. cxd5 {[%emt 0:04:28]} exd5 {[%emt 0:00:42]} 8. d4 {[%emt 0:00:15]} Bd6 {[%emt 0:05:24]} 9. Bd3 {[%emt 0:00:55]} a6 {[%emt 0:00:31]} 10. Qc2 {[%emt 0:03:48]} O-O {[%emt 0:04:27]} 11. g4 {[%emt 0:06:13]} Re8 {[%emt 0:14:14]} 12. O-O-O {[%emt 0:13:06]} Rc8 {[%emt 0:08:54]} 13. h4 {[%emt 0:07:52]} c5 {[%emt 0:11:01]} 14. h5 {[%emt 0:26:02]} c4 {[%emt 0:04:52]} 15. Bf5 {[%emt 0:02:08]} cxb3 {[%emt 0:08:44]} 16. Qxb3 {[%emt 0:02:09]} Ne4 {[%emt 0:07:21]} 17. Bxe4 {[%emt 0:01:42]} dxe4 {[%emt 0:00:11]} 18. Nh4 {[%emt 0:04:30]} b5 {[%emt 0:04:14]} 19. Nf5 {[%emt 0:25:24]} Nb6 {[%emt 0:01:24]} 20. Kb1 {[%emt 0:00:00]} b4 {[%emt 0:01:42]} 21. Na4 {[%emt 0:00:00]} Bd5 {[%emt 0:01:08]} 22. Nxb6 {[%emt 0:00:00]} Bxb3 {[%emt 0:00:29]} 23. Nxc8 {[%emt 0:00:00]} Bxd1 {[%emt 0:04:08]} 24. Ncxd6 {[%emt 0:00:00]} Bxg4 {[%emt 0:00:34]} 25. Rg1 {[%emt 0:00:00]} Bxf5 {[%emt 0:01:03]} 26. Nxf5 {[%emt 0:00:00]} Qf6 {[%emt 0:01:24]} 27. d5 {[%emt 0:00:00]} Qxf5 {[%emt 0:00:17]} 28. Bxg7 {[%emt 0:00:00]} Qxf2 {[%emt 0:01:29]} 29. Rg5 {[%emt 0:00:00]} Qxe3 {[%emt 0:00:47]} 30. Rg2 {[%emt 0:00:00]} Qf3 {[%emt 0:00:26]} 31. Rg1 {[%emt 0:00:49]} Qf2 {[%emt 0:00:31]} 32. Rg5 {[%emt 0:00:47]} h6 {[%emt 0:00:42]} 33. Rg4 {[%emt 0:00:41]} Qe1+ {[%emt 0:00:13]} 34. Kc2 {[%emt 0:00:15]} Qe2+ {[%emt 0:00:00]} 0-1

[Event "FIDE World Cup O12-TB 2024"]
[Site "Batumi"]
[Date "2024.07.01"]
[Round "1.11"]
[White "Sobirov, Afruzbek"]
[Black "Ambartsumyan, Yuri"]
[Result "0-1"]
[ECO "D00"]
[WhiteElo "1789"]
[BlackElo "1750"]
[Annotator "NA RC"]
[PlyCount "122"]
[EventDate "2024.06.23"]
[EventType "swiss"]
[EventCountry "GEO"]
[SourceTitle "playchess.com"]
[Source "ChessBase"]
[SourceQuality "1"]
[TimeControl "5400+30"]

1. d4 {[%emt 0:00:07]} d5 {[%emt 0:00:04]} 2. Nc3 {[%emt 0:00:06]} Nf6 {[%emt 0:00:03]} 3. Bf4 {[%emt 0:00:07]} e6 {[%emt 0:00:01]} 4. Nb5 {[%emt 0:00:09]} Bb4+ {[%emt 0:00:08]} 5. c3 {[%emt 0:00:06]} Ba5 {[%emt 0:00:01]} 6. a4 {[%emt 0:00:07]} a6 {[%emt 0:00:33]} 7. b4 {[%emt 0:00:10]} axb5 {[%emt 0:02:15]} 8. axb5 {[%emt 0:03:47]} Bd7 {[%emt 0:02:45]} 9. e3 {[%emt 0:01:07]} Ne4 {[%emt 0:07:57]} 10. bxa5 {[%emt 0:01:57]} Nxc3 {[%emt 0:06:22]} 11. Qb3 {[%emt 0:01:22]} Ne4 {[%emt 0:00:57]} 12. Nf3 {[%emt 0:01:12]} O-O {[%emt 0:01:13]} 13. Bd3 {[%emt 0:00:28]} c5 {[%emt 0:02:17]} 14. Bxb8 {[%emt 0:14:37]} c4 {[%emt 0:01:31]} 15. Qb4 {[%emt 0:03:41]} cxd3 {[%emt 0:00:22]} 16. Bf4 {[%emt 0:01:35]} Qe8 {[%emt 0:19:19]} 17. Rb1 {[%emt 0:00:43]} Rc8 {[%emt 0:04:59]} 18. b6 {[%emt 0:08:34]} Rc4 {[%emt 0:00:56]} 19. Qa3 {[%emt 0:14:17]} Bb5 {[%emt 0:07:20]} 20. Ra1 {[%emt 0:07:54]} Qc6 {[%emt 0:13:52]} 21. O-O {[%emt 0:02:10]} f6 {[%emt 0:01:03]} 22. h4 {[%emt 0:06:03]} Rc8 {[%emt 0:01:09]} 23. Bc7 {[%emt 0:00:16]} Rc3 {[%emt 0:01:45]} 24. Qb4 {[%emt 0:01:07]} Ba6 {[%emt 0:00:08]} 25. h5 {[%emt 0:04:17]} Kf7 {[%emt 0:01:22]} 26. Rfd1 {[%emt 0:03:47]} Rc2 {[%emt 0:02:37]} 27. Nd2 {[%emt 0:00:30]} Nc3 {[%emt 0:00:37]} 28. Nb3 {[%emt 0:03:07]} Nxd1 {[%emt 0:01:12]} 29. Rxd1 {[%emt 0:00:08]} Rc4 {[%emt 0:01:25]} 30. Qa3 {[%emt 0:00:42]} Rc3 {[%emt 0:04:08]} 31. Qb4 {[%emt 0:00:43]} Rxb3 {[%emt 0:09:27]} 32. Qxb3 {[%emt 0:00:15]} Ra8 {[%emt 0:00:10]} 33. Qb4 {[%emt 0:05:41]} Qc2 {[%emt 0:04:24]} 34. Rd2 {[%emt 0:00:15]} Qc6 {[%emt 0:02:14]} 35. Rb2 {[%emt 0:01:07]} h6 {[%emt 0:00:56]} 36. Qc5 {[%emt 0:04:16]} Qa4 {[%emt 0:00:07]} 37. Kh2 {[%emt 0:00:26]} Qd1 {[%emt 0:00:37]} 38. Qb4 {[%emt 0:05:33]} Qxh5+ {[%emt 0:00:14]} 39. Kg1 {[%emt 0:00:03]} Qd1+ {[%emt 0:00:07]} 40. Kh2 {[%emt 0:00:04]} Qc1 {[%emt 0:00:21]} 41. Kg3 {[%emt 0:02:30]} h5 {[%emt 0:00:55]} 42. Kh2 {[%emt 0:00:48]} Bc4 {[%emt 0:00:50]} 43. Rd2 {[%emt 0:00:57]} Ba6 {[%emt 0:00:38]} 44. Rb2 {[%emt 0:01:49]} h4 {[%emt 0:00:33]} 45. Rd2 {[%emt 0:01:12]} Rh8 {[%emt 0:00:38]} 46. f3 {[%emt 0:02:07]} Qe1 {[%emt 0:00:37]} 47. e4 {[%emt 0:01:04]} dxe4 {[%emt 0:01:02]} 48. d5 {[%emt 0:00:28]} exf3 {[%emt 0:00:11]} 49. gxf3 {[%emt 0:00:09]} exd5 {[%emt 0:00:22]} 50. Bf4 {[%emt 0:00:26]} Re8 {[%emt 0:00:37]} 51. Qd6 {[%emt 0:01:16]} Re2+ {[%emt 0:00:16]} 52. Rxe2 {[%emt 0:00:04]} Qxe2+ {[%emt 0:00:02]} 53. Kg1 {[%emt 0:00:07]} Qxf3 {[%emt 0:00:16]} 54. Qd7+ {[%emt 0:00:30]} Kg6 {[%emt 0:00:11]} 55. Qe8+ {[%emt 0:00:25]} Kh7 {[%emt 0:00:02]} 56. Qe3 {[%emt 0:01:16]} Qxe3+ {[%emt 0:00:03]} 57. Bxe3 {[%emt 0:00:07]} Kg6 {[%emt 0:00:01]} 58. Kg2 {[%emt 0:00:11]} Kf5 {[%emt 0:00:03]} 59. Kf3 {[%emt 0:00:27]} d4 {[%emt 0:00:07]} 60. Bd2 {[%emt 0:00:10]} h3 {[%emt 0:00:01]} 61. Bf4 {[%emt 0:01:11]} h2 {[%emt 0:06:37]} 0-1

[Event "FIDE World Cup O12-TB 2024"]
[Site "Batumi"]
[Date "2024.07.01"]
[Round "1.12"]
[White "Diaz Guerrero, Jesus Daniel"]
[Black "Yin, Zeming"]
[Result "1-0"]
[ECO "B45"]
[WhiteElo "2032"]
[BlackElo "1832"]
[Annotator "TA"]
[PlyCount "41"]
[EventDate "2024.06.23"]
[EventType "swiss"]
[EventCountry "GEO"]
[SourceTitle "playchess.com"]
[Source "ChessBase"]
[SourceQuality "1"]
[TimeControl "5400+30"]

{[%evp 11,41,0,11,10,10,0,2,0,9,-12,10,10,23,29,33,0,12,0,9,0,21,19,35,19,106,94,118,116,110,107,118,92]} 1. e4 {[%emt 0:00:33]} c5 {[%emt 0:00:14]} 2. Nf3 {[%emt 0:00:08]} Nc6 {[%emt 0:00:02]} 3. d4 {[%emt 0:00:41]} cxd4 {[%emt 0:00:04]} 4. Nxd4 {[%emt 0:00:07]} Nf6 {[%emt 0:00:20]} 5. Nc3 {[%emt 0:00:37]} e6 {[%emt 0:00:12]} 6. a3 {[%emt 0:03:22]} d5 {[%emt 0:00:29]} 7. exd5 {[%emt 0:00:56]} Nxd5 {[%emt 0:00:06]} 8. Nxd5 {[%emt 0:00:18]} Qxd5 {[%emt 0:00:33]} 9. Be3 {[%emt 0:00:06] The position is equal.} Be7 {[%emt 0:06:28]} 10. Qd2 {[%emt 0:10:12]} Nxd4 {[%emt 0:11:12]} 11. Qxd4 {[%emt 0:00:12]} Qxd4 {[%emt 0:00:28]} 12. Bxd4 {[%emt 0:00:09]} Bf6 {[%emt 0:00:29]} 13. O-O-O {[%emt 0:00:59] [#] Black must now prevent Bb5+.} Bxd4 {[%emt 0:01:04]} 14. Rxd4 {[%emt 0:00:02]} Bd7 {[%emt 0:01:16]} 15. b4 {[%emt 0:19:18]} a6 {[%emt 0:05:41]} 16. Be2 {[%emt 0:14:23]} Rc8 {[%emt 0:12:48]} 17. Bf3 {[%emt 0:11:25]} Bc6 {[%emt 0:03:02] [#]} (17... Rc7 $11) 18. Bxc6+ $1 $16 {[%emt 0:00:25] White is better.} Rxc6 {[%emt 0:00:08]} 19. Rhd1 {[%emt 0:00:05] aiming for Rd8+.} O-O {[%emt 0:00:36]} 20. Rd7 {[%emt 0:00:30]} b5 {[%emt 0:00:41]} 21. R1d6 {Weighted Error Value: White=0.06 (flawless) /Black=0.20 (precise) .  Mistake:       	---       	Black=1      OK:         	White=3     	Black=3      Best:        	White=1     	Black=1      Strong:       	White=1     	---} 1-0